[Event "*** Titled Tuesday Blitz"]
[Site "Chess.com"]
[Date "2019.09.03"]
[Round "1"]
[White "Parhamov"]
[Black "albi1999"]
[Result "1/2-1/2"]
[WhiteElo "2895"]
[BlackElo "2475"]
[TimeControl "180+2"]
[EndTime "15:06:22 PDT"]
[Termination "Game drawn by agreement"]

1. Nf3 {[%clk 0:02:54.3]} 1... d5 {[%clk 0:02:57.6]} 2. g3 {[%clk 0:02:56.2]}
2... Bg4 {[%clk 0:02:55.7]} 3. Bg2 {[%clk 0:02:57.3]} 3... Nd7 {[%clk
0:02:54.6]} 4. O-O {[%clk 0:02:57.9]} 4... c6 {[%clk 0:02:54.4]} 5. d3 {[%clk
0:02:56.7]} 5... e5 {[%clk 0:02:55.1]} 6. Nbd2 {[%clk 0:02:58]} 6... Ngf6 {[%clk
0:02:55.8]} 7. h3 {[%clk 0:02:59.3]} 7... Bh5 {[%clk 0:02:56]} 8. e4 {[%clk
0:03:00.6]} 8... dxe4 {[%clk 0:02:57.3]} 9. dxe4 {[%clk 0:03:01.2]} 9... Bc5
{[%clk 0:02:58.4]} 10. Qe1 {[%clk 0:03:02]} 10... O-O {[%clk 0:02:59.1]} 11. a4
{[%clk 0:03:03.9]} 11... Re8 {[%clk 0:02:57.9]} 12. Nh4 {[%clk 0:03:04.3]} 12...
Qc7 {[%clk 0:02:50.9]} 13. Nb3 {[%clk 0:03:04.9]} 13... Bf8 {[%clk 0:02:48.6]}
14. a5 {[%clk 0:03:03.8]} 14... b5 {[%clk 0:02:48.3]} 15. Be3 {[%clk 0:03:02.3]}
15... c5 {[%clk 0:02:36.6]} 16. Nf5 {[%clk 0:03:00.4]} 16... c4 {[%clk
0:02:31.7]} 17. Nd2 {[%clk 0:03:01.4]} 17... Bc5 {[%clk 0:02:29.2]} 18. Bxc5
{[%clk 0:02:52]} 18... Nxc5 {[%clk 0:02:31.1]} 19. Qe3 {[%clk 0:02:50.8]} 19...
Rad8 {[%clk 0:02:22.2]} 20. b4 {[%clk 0:02:48.2]} 20... Ne6 {[%clk 0:02:17.2]}
21. Nb1 {[%clk 0:02:48.9]} 21... Nd4 {[%clk 0:01:48.7]} 22. Na3 {[%clk 0:02:49]}
22... a6 {[%clk 0:01:46.9]} 23. Rae1 {[%clk 0:02:41.1]} 23... Rd7 {[%clk
0:01:41.1]} 24. c3 {[%clk 0:02:38.2]} 24... Nxf5 {[%clk 0:01:34.1]} 25. exf5
{[%clk 0:02:39.2]} 25... Rd3 {[%clk 0:01:35.7]} 26. Qc1 {[%clk 0:02:39.8]} 26...
e4 {[%clk 0:01:30.6]} 27. Qg5 {[%clk 0:02:20.7]} 27... h6 {[%clk 0:01:29.2]} 28.
Qh4 {[%clk 0:02:15.2]} 28... Rxc3 {[%clk 0:01:19.6]} 29. Nb1 {[%clk 0:02:15.4]}
29... Rd3 {[%clk 0:01:21.1]} 30. g4 {[%clk 0:02:06.5]} 30... Qf4 {[%clk
0:01:21]} 31. Re3 {[%clk 0:02:06.4]} 31... g5 {[%clk 0:01:11.5]} 32. fxg6 {[%clk
0:02:02.7]} 32... Bxg6 {[%clk 0:01:11.8]} 33. Rfe1 {[%clk 0:02:00.8]} 33... Nd5
{[%clk 0:01:08]} 34. R3e2 {[%clk 0:01:56.7]} 34... e3 {[%clk 0:01:06.1]} 35.
Bxd5 {[%clk 0:01:52.6]} 1/2-1/2

[Event "*** Titled Tuesday Blitz"]
[Site "Chess.com"]
[Date "2019.09.03"]
[Round "1"]
[White "juniortay"]
[Black "StephenDedalus83"]
[Result "0-1"]
[WhiteElo "2420"]
[BlackElo "2833"]
[TimeControl "180+2"]
[EndTime "15:06:28 PDT"]
[Termination "StephenDedalus83 won by resignation"]

1. e4 {[%clk 0:03:01.9]} 1... c5 {[%clk 0:02:59.2]} 2. Nc3 {[%clk 0:02:59.5]}
2... Nc6 {[%clk 0:02:55.4]} 3. f4 {[%clk 0:03:00.3]} 3... g6 {[%clk 0:02:53.4]}
4. Nf3 {[%clk 0:03:00.3]} 4... Bg7 {[%clk 0:02:48.4]} 5. Bc4 {[%clk 0:03:00.8]}
5... e6 {[%clk 0:02:49.1]} 6. f5 {[%clk 0:03:02]} 6... gxf5 {[%clk 0:02:48.8]}
7. d3 {[%clk 0:03:02.5]} 7... Nge7 {[%clk 0:02:49.1]} 8. O-O {[%clk 0:03:01.8]}
8... d5 {[%clk 0:02:49.5]} 9. exd5 {[%clk 0:02:56.9]} 9... exd5 {[%clk
0:02:49.5]} 10. Bb3 {[%clk 0:02:58.1]} 10... Be6 {[%clk 0:02:48.2]} 11. Ng5
{[%clk 0:02:50.4]} 11... Qd7 {[%clk 0:02:48.6]} 12. Qh5 {[%clk 0:02:47.5]} 12...
O-O-O {[%clk 0:02:41.9]} 13. Nxf7 {[%clk 0:02:42]} 13... Qe8 {[%clk 0:02:42.4]}
14. Nxd8 {[%clk 0:02:06.7]} 14... Qxh5 {[%clk 0:02:41.1]} 15. Nxe6 {[%clk
0:02:07.6]} 15... Be5 {[%clk 0:02:37.4]} 16. Bf4 {[%clk 0:02:04.8]} 16... d4
{[%clk 0:02:30.9]} 17. Nd5 {[%clk 0:01:55.1]} 17... Nxd5 {[%clk 0:02:19.1]} 18.
Bxd5 {[%clk 0:01:57]} 18... Bxf4 {[%clk 0:02:13]} 19. Nxf4 {[%clk 0:01:57.5]}
19... Qh6 {[%clk 0:02:10]} 20. Rae1 {[%clk 0:01:52.3]} 20... Nd8 {[%clk
0:02:01.9]} 21. g3 {[%clk 0:01:36.6]} 21... Rf8 {[%clk 0:01:59.8]} 22. Re7
{[%clk 0:01:34.9]} 22... Qd6 {[%clk 0:01:45.6]} 23. Rfe1 {[%clk 0:01:32.4]}
23... Qb6 {[%clk 0:01:45.2]} 24. b3 {[%clk 0:01:24.1]} 24... Qa5 {[%clk
0:01:45.8]} 25. a4 {[%clk 0:01:20.3]} 25... Qd2 {[%clk 0:01:45]} 26. R1e2 {[%clk
0:01:16.6]} 26... Qc1+ {[%clk 0:01:44.9]} 27. Kg2 {[%clk 0:01:17.8]} 27... h6
{[%clk 0:01:45.5]} 28. Rh7 {[%clk 0:00:58.5]} 28... a6 {[%clk 0:01:34.9]} 29.
Ree7 {[%clk 0:00:48.8]} 29... Qxc2+ {[%clk 0:01:34.3]} 30. Kh3 {[%clk
0:00:48.6]} 30... Qd1 {[%clk 0:01:34.6]} 31. Bxb7+ {[%clk 0:00:37.2]} 31... Kb8
{[%clk 0:01:33]} 32. Re4 {[%clk 0:00:36.9]} 32... fxe4 {[%clk 0:01:31.7]} 0-1

[Event "*** Titled Tuesday Blitz"]
[Site "Chess.com"]
[Date "2019.09.03"]
[Round "1"]
[White "KRASAVCHIK2002"]
[Black "Shahinyan_ChessMood"]
[Result "1-0"]
[WhiteElo "2343"]
[BlackElo "2676"]
[TimeControl "180+2"]
[EndTime "15:06:33 PDT"]
[Termination "KRASAVCHIK2002 won by resignation"]

1. e4 {[%clk 0:03:01.9]} 1... e6 {[%clk 0:02:59.2]} 2. d4 {[%clk 0:03:02.4]}
2... d5 {[%clk 0:03:00.4]} 3. Nc3 {[%clk 0:03:03.7]} 3... Nf6 {[%clk 0:03:00.5]}
4. Bg5 {[%clk 0:03:03.4]} 4... Bb4 {[%clk 0:03:01.3]} 5. e5 {[%clk 0:03:03.3]}
5... h6 {[%clk 0:03:02.4]} 6. Be3 {[%clk 0:02:59.1]} 6... Ne4 {[%clk 0:03:02.2]}
7. Ne2 {[%clk 0:02:58.1]} 7... Bd7 {[%clk 0:02:50]} 8. a3 {[%clk 0:02:56.1]}
8... Nxc3 {[%clk 0:02:50.9]} 9. Nxc3 {[%clk 0:02:50.6]} 9... Bf8 {[%clk
0:02:41.8]} 10. f4 {[%clk 0:02:51.3]} 10... c5 {[%clk 0:02:42.9]} 11. dxc5
{[%clk 0:02:43.9]} 11... Nc6 {[%clk 0:02:40.1]} 12. Nb5 {[%clk 0:02:42.7]} 12...
Nxe5 {[%clk 0:02:31.6]} 13. fxe5 {[%clk 0:02:39.3]} 13... Qh4+ {[%clk
0:02:17.9]} 14. Bf2 {[%clk 0:02:37.4]} 14... Qg5 {[%clk 0:02:14.2]} 15. Nc7+
{[%clk 0:02:29.9]} 15... Kd8 {[%clk 0:02:15.2]} 16. Nxa8 {[%clk 0:02:31.8]}
16... Qxe5+ {[%clk 0:02:16.4]} 17. Be2 {[%clk 0:02:27.9]} 17... Bb5 {[%clk
0:02:09.5]} 18. Nc7 {[%clk 0:02:09.6]} 18... Bxe2 {[%clk 0:02:01.6]} 19. Qxe2
{[%clk 0:02:10.3]} 19... Qxc7 {[%clk 0:01:56.1]} 20. c4 {[%clk 0:02:08.8]} 20...
Be7 {[%clk 0:01:48.3]} 21. cxd5 {[%clk 0:02:05.1]} 21... Bf6 {[%clk 0:01:49.4]}
22. d6 {[%clk 0:01:51.7]} 22... Qa5+ {[%clk 0:01:37]} 23. Qd2 {[%clk 0:01:52.9]}
23... Qb5 {[%clk 0:01:32.5]} 24. Rd1 {[%clk 0:01:34.3]} 24... Kd7 {[%clk
0:01:30.8]} 25. b4 {[%clk 0:01:35.3]} 25... a5 {[%clk 0:01:23.8]} 26. Qd3 {[%clk
0:01:30.6]} 26... Qa4 {[%clk 0:01:24.4]} 27. O-O {[%clk 0:01:31.7]} 27... Rc8
{[%clk 0:01:24.5]} 28. Rb1 {[%clk 0:01:25.6]} 28... b6 {[%clk 0:01:03.3]} 29.
cxb6 {[%clk 0:01:10.8]} 29... Rc3 {[%clk 0:01:01.5]} 30. Qa6 {[%clk 0:01:07.7]}
1-0

[Event "*** Titled Tuesday Blitz"]
[Site "Chess.com"]
[Date "2019.09.03"]
[Round "1"]
[White "grzechu96"]
[Black "Grootneus"]
[Result "1-0"]
[WhiteElo "2562"]
[BlackElo "2122"]
[TimeControl "180+2"]
[EndTime "15:06:38 PDT"]
[Termination "grzechu96 won by checkmate"]

1. e4 {[%clk 0:03:01.9]} 1... c5 {[%clk 0:03:00.5]} 2. Nf3 {[%clk 0:03:02.4]}
2... d6 {[%clk 0:03:01]} 3. Bb5+ {[%clk 0:03:02.3]} 3... Bd7 {[%clk 0:03:00.7]}
4. Bxd7+ {[%clk 0:03:03.1]} 4... Qxd7 {[%clk 0:03:02.6]} 5. c4 {[%clk
0:03:04.5]} 5... Nf6 {[%clk 0:02:58.9]} 6. Nc3 {[%clk 0:03:05.4]} 6... g6 {[%clk
0:02:59.7]} 7. d4 {[%clk 0:03:05.9]} 7... cxd4 {[%clk 0:03:00.5]} 8. Nxd4 {[%clk
0:03:07.8]} 8... Bg7 {[%clk 0:03:01.9]} 9. f3 {[%clk 0:03:09.3]} 9... O-O {[%clk
0:02:58.7]} 10. Be3 {[%clk 0:03:10.5]} 10... Nc6 {[%clk 0:02:59.4]} 11. O-O
{[%clk 0:03:11.3]} 11... Rac8 {[%clk 0:02:56.6]} 12. b3 {[%clk 0:03:07.2]} 12...
a6 {[%clk 0:02:26.1]} 13. a4 {[%clk 0:03:07.9]} 13... Rfd8 {[%clk 0:02:15.7]}
14. Rc1 {[%clk 0:02:54.8]} 14... e6 {[%clk 0:02:12.2]} 15. Re1 {[%clk 0:02:55]}
15... Qc7 {[%clk 0:01:35.1]} 16. Nd5 {[%clk 0:02:43.9]} 16... exd5 {[%clk
0:01:33.5]} 17. cxd5 {[%clk 0:02:45.1]} 17... Qd7 {[%clk 0:01:33.2]} 18. dxc6
{[%clk 0:02:45.9]} 18... bxc6 {[%clk 0:01:33.1]} 19. Qd3 {[%clk 0:02:45.4]}
19... Qb7 {[%clk 0:01:11.3]} 20. Rc2 {[%clk 0:02:46.3]} 20... Nd7 {[%clk
0:01:01.4]} 21. Rb1 {[%clk 0:02:37.2]} 21... Nc5 {[%clk 0:00:57.8]} 22. Qc4
{[%clk 0:02:33.7]} 22... Nd7 {[%clk 0:00:37]} 23. Nxc6 {[%clk 0:01:31.8]} 23...
Nb6 {[%clk 0:00:27.9]} 24. Bxb6 {[%clk 0:01:26]} 24... Qxb6+ {[%clk 0:00:28.7]}
25. Kh1 {[%clk 0:01:27.5]} 25... Re8 {[%clk 0:00:15.9]} 26. Ne7+ {[%clk
0:01:27.8]} 26... Kf8 {[%clk 0:00:10.9]} 27. Nxc8 {[%clk 0:01:28.6]} 27... Qe3
{[%clk 0:00:12.4]} 28. Nxd6 {[%clk 0:01:26.9]} 28... Rd8 {[%clk 0:00:14]} 29.
Qxf7# {[%clk 0:01:27.6]} 1-0

[Event "*** Titled Tuesday Blitz"]
[Site "Chess.com"]
[Date "2019.09.03"]
[Round "1"]
[White "ecwinslow"]
[Black "pedro_gines"]
[Result "0-1"]
[WhiteElo "2007"]
[BlackElo "2526"]
[TimeControl "180+2"]
[EndTime "15:06:39 PDT"]
[Termination "pedro_gines won by resignation"]

1. d4 {[%clk 0:03:01.4]} 1... Nf6 {[%clk 0:02:59.8]} 2. c4 {[%clk 0:03:02.2]}
2... d6 {[%clk 0:02:56]} 3. Nc3 {[%clk 0:03:02.7]} 3... e5 {[%clk 0:02:55.6]} 4.
Nf3 {[%clk 0:02:58.5]} 4... Nbd7 {[%clk 0:02:50]} 5. Bg5 {[%clk 0:02:56.6]} 5...
Be7 {[%clk 0:02:49]} 6. e3 {[%clk 0:02:52.7]} 6... O-O {[%clk 0:02:49.6]} 7. Qc2
{[%clk 0:02:53]} 7... h6 {[%clk 0:02:50.2]} 8. h4 {[%clk 0:02:28.5]} 8... exd4
{[%clk 0:02:34.9]} 9. Nxd4 {[%clk 0:02:28.2]} 9... Ne5 {[%clk 0:02:35.9]} 10.
O-O-O {[%clk 0:02:18.2]} 10... a6 {[%clk 0:02:24.5]} 11. f3 {[%clk 0:02:05.2]}
11... b5 {[%clk 0:02:21.2]} 12. Bxf6 {[%clk 0:02:01.2]} 12... Bxf6 {[%clk
0:02:20.9]} 13. Be2 {[%clk 0:01:51]} 13... Nxc4 {[%clk 0:02:18.6]} 14. Bxc4
{[%clk 0:01:48.9]} 14... bxc4 {[%clk 0:02:20.5]} 15. g4 {[%clk 0:01:47]} 15...
Bxh4 {[%clk 0:02:15.3]} 16. Nf5 {[%clk 0:01:30.3]} 16... Bxf5 {[%clk 0:01:55.6]}
17. gxf5 {[%clk 0:01:29.4]} 17... Bf6 {[%clk 0:01:50.9]} 18. Rdg1 {[%clk
0:01:21.5]} 18... Qe7 {[%clk 0:01:39.2]} 19. e4 {[%clk 0:01:21.3]} 19... Bg5+
{[%clk 0:01:38.7]} 20. Kb1 {[%clk 0:01:19]} 20... Qe5 {[%clk 0:01:37.9]} 21. Rg4
{[%clk 0:00:53.4]} 21... Rab8 {[%clk 0:01:25.8]} 22. Rhg1 {[%clk 0:00:36.6]}
22... Bf6 {[%clk 0:01:24.7]} 23. f4 {[%clk 0:00:20.4]} 23... Qxc3 {[%clk
0:01:11.1]} 24. Rxg7+ {[%clk 0:00:21.1]} 24... Kh8 {[%clk 0:01:12.4]} 25. R7g2
{[%clk 0:00:09.4]} 25... Qxc2+ {[%clk 0:01:11.8]} 26. Rxc2 {[%clk 0:00:08.5]}
26... c3 {[%clk 0:01:12.3]} 27. b3 {[%clk 0:00:08.8]} 0-1

[Event "*** Titled Tuesday Blitz"]
[Site "Chess.com"]
[Date "2019.09.03"]
[Round "1"]
[White "Ali_rastbod"]
[Black "JakeCarlosBanawa"]
[Result "1-0"]
[WhiteElo "2709"]
[BlackElo "2334"]
[TimeControl "180+2"]
[EndTime "15:06:48 PDT"]
[Termination "Ali_rastbod won by resignation"]

1. c4 {[%clk 0:02:52.2]} 1... c5 {[%clk 0:02:51.5]} 2. Nf3 {[%clk 0:02:51.9]}
2... Nc6 {[%clk 0:02:51.5]} 3. b3 {[%clk 0:02:50.8]} 3... Nf6 {[%clk 0:02:46.8]}
4. Bb2 {[%clk 0:02:46.8]} 4... e6 {[%clk 0:02:43.2]} 5. g3 {[%clk 0:02:45.1]}
5... b6 {[%clk 0:02:35.4]} 6. Bg2 {[%clk 0:02:44.8]} 6... Bb7 {[%clk 0:02:37]}
7. O-O {[%clk 0:02:46]} 7... Be7 {[%clk 0:02:37.8]} 8. Nc3 {[%clk 0:02:40.9]}
8... O-O {[%clk 0:02:37.1]} 9. d4 {[%clk 0:02:42.3]} 9... Nxd4 {[%clk
0:02:36.8]} 10. Nxd4 {[%clk 0:02:44.2]} 10... Bxg2 {[%clk 0:02:37.3]} 11. Nxe6
{[%clk 0:02:45.4]} 11... fxe6 {[%clk 0:02:29]} 12. Kxg2 {[%clk 0:02:47.3]} 12...
d5 {[%clk 0:02:28.9]} 13. e3 {[%clk 0:02:45.3]} 13... Qd7 {[%clk 0:02:14.1]} 14.
Qe2 {[%clk 0:02:43.3]} 14... d4 {[%clk 0:02:11.3]} 15. exd4 {[%clk 0:02:43.8]}
15... cxd4 {[%clk 0:02:11.9]} 16. Nb5 {[%clk 0:02:33.7]} 16... Bc5 {[%clk
0:01:50.8]} 17. Rad1 {[%clk 0:02:32.9]} 17... e5 {[%clk 0:01:06.7]} 18. Qxe5
{[%clk 0:02:26.3]} 18... Rae8 {[%clk 0:01:03.3]} 19. Qg5 {[%clk 0:02:25.9]}
19... Qb7+ {[%clk 0:00:54.6]} 20. Kg1 {[%clk 0:02:24.2]} 20... Re2 {[%clk
0:00:33.7]} 21. Bxd4 {[%clk 0:02:21.4]} 21... Bxd4 {[%clk 0:00:31]} 22. Nxd4
{[%clk 0:02:23.3]} 22... Rxa2 {[%clk 0:00:31.8]} 23. Ne6 {[%clk 0:02:07.9]}
23... Re8 {[%clk 0:00:26.3]} 24. Rfe1 {[%clk 0:02:06.3]} 24... Rb2 {[%clk
0:00:16.8]} 25. Re3 {[%clk 0:01:42.5]} 25... a5 {[%clk 0:00:16.6]} 26. Rde1
{[%clk 0:01:37.2]} 26... Qf7 {[%clk 0:00:15.1]} 27. Nxg7 {[%clk 0:01:33.8]}
27... Rxe3 {[%clk 0:00:12.6]} 28. Nf5+ {[%clk 0:01:35.1]} 28... Kf8 {[%clk
0:00:13]} 29. Qh6+ {[%clk 0:01:32.2]} 29... Kg8 {[%clk 0:00:13.2]} 30. Qxe3
{[%clk 0:01:33.3]} 1-0

[Event "*** Titled Tuesday Blitz"]
[Site "Chess.com"]
[Date "2019.09.03"]
[Round "1"]
[White "ZeroRealtorFade"]
[Black "German_Bazeev"]
[Result "0-1"]
[WhiteElo "2362"]
[BlackElo "2715"]
[TimeControl "180+2"]
[EndTime "15:06:50 PDT"]
[Termination "German_Bazeev won on time"]

1. d4 {[%clk 0:02:59]} 1... Nf6 {[%clk 0:03:00.9]} 2. Bf4 {[%clk 0:02:59.3]}
2... g6 {[%clk 0:03:01.5]} 3. e3 {[%clk 0:03:00.3]} 3... Bg7 {[%clk 0:03:02.2]}
4. h3 {[%clk 0:03:01.4]} 4... O-O {[%clk 0:03:03]} 5. Nf3 {[%clk 0:03:02.4]}
5... d6 {[%clk 0:03:04.2]} 6. Bh2 {[%clk 0:03:02.9]} 6... Nc6 {[%clk 0:03:05.3]}
7. c3 {[%clk 0:03:02.6]} 7... Nd7 {[%clk 0:03:06.6]} 8. Bb5 {[%clk 0:02:50.4]}
8... e5 {[%clk 0:03:02.7]} 9. Bxc6 {[%clk 0:02:30.8]} 9... bxc6 {[%clk
0:03:04.5]} 10. dxe5 {[%clk 0:02:31.5]} 10... Ba6 {[%clk 0:02:57.4]} 11. exd6
{[%clk 0:02:17.1]} 11... Nc5 {[%clk 0:02:57.1]} 12. Qd2 {[%clk 0:01:40.3]} 12...
Nd3+ {[%clk 0:02:45.3]} 13. Kd1 {[%clk 0:01:39.1]} 13... cxd6 {[%clk 0:02:44]}
14. Ne1 {[%clk 0:01:29.6]} 14... Nc5 {[%clk 0:02:38.9]} 15. Na3 {[%clk
0:00:29.3]} 15... Rb8 {[%clk 0:02:27.4]} 16. Kc1 {[%clk 0:00:23.2]} 16... Ne4
{[%clk 0:02:21.3]} 17. Qc2 {[%clk 0:00:23.7]} 17... Re8 {[%clk 0:01:50.1]} 18.
Nf3 {[%clk 0:00:23.7]} 18... Qa5 {[%clk 0:01:45.5]} 19. Rd1 {[%clk 0:00:08.1]}
19... Rxb2 {[%clk 0:01:44.6]} 20. Qxb2 {[%clk 0:00:07.3]} 20... Bxc3 {[%clk
0:01:36]} 21. Qb3 {[%clk 0:00:06.3]} 21... Bxa1 {[%clk 0:01:34.5]} 22. Kc2
{[%clk 0:00:06.7]} 22... Qc5+ {[%clk 0:01:34.3]} 23. Kb1 {[%clk 0:00:06.4]}
23... Bf6 {[%clk 0:01:31.9]} 24. Rc1 {[%clk 0:00:03.6]} 24... Bd3+ {[%clk
0:01:22.3]} 25. Qxd3 {[%clk 0:00:02.6]} 25... Rb8+ {[%clk 0:01:23.4]} 0-1

[Event "*** Titled Tuesday Blitz"]
[Site "Chess.com"]
[Date "2019.09.03"]
[Round "1"]
[White "ohusbands"]
[Black "Gattass"]
[Result "1-0"]
[WhiteElo "2653"]
[BlackElo "2299"]
[TimeControl "180+2"]
[EndTime "15:07:02 PDT"]
[Termination "ohusbands won by resignation"]

1. e4 {[%clk 0:03:01.9]} 1... c5 {[%clk 0:03:00.5]} 2. Nf3 {[%clk 0:03:02.7]}
2... d6 {[%clk 0:03:01.5]} 3. d4 {[%clk 0:03:04.1]} 3... cxd4 {[%clk 0:03:03.4]}
4. Nxd4 {[%clk 0:03:06]} 4... Nf6 {[%clk 0:03:04.5]} 5. Nc3 {[%clk 0:03:06.6]}
5... a6 {[%clk 0:03:04.5]} 6. Bg5 {[%clk 0:03:07.5]} 6... e6 {[%clk 0:03:05]} 7.
f4 {[%clk 0:03:07.7]} 7... Be7 {[%clk 0:03:03.1]} 8. Qf3 {[%clk 0:03:08.1]} 8...
h6 {[%clk 0:03:03.2]} 9. Bh4 {[%clk 0:03:07.6]} 9... g5 {[%clk 0:03:01.6]} 10.
fxg5 {[%clk 0:03:09.3]} 10... Nfd7 {[%clk 0:03:01.3]} 11. Qh5 {[%clk 0:02:39.5]}
11... Ne5 {[%clk 0:02:53.4]} 12. Bg3 {[%clk 0:02:38.7]} 12... Bxg5 {[%clk
0:02:40.5]} 13. Nf3 {[%clk 0:02:38.3]} 13... Nbc6 {[%clk 0:02:20.6]} 14. Nxg5
{[%clk 0:02:31.9]} 14... Qxg5 {[%clk 0:02:22.5]} 15. Be2 {[%clk 0:02:24.1]}
15... Nd4 {[%clk 0:02:11.8]} 16. O-O {[%clk 0:02:03.5]} 16... Qxh5 {[%clk
0:01:50.4]} 17. Bxh5 {[%clk 0:02:00.5]} 17... Rh7 {[%clk 0:01:32.5]} 18. Rad1
{[%clk 0:01:47.2]} 18... Nxc2 {[%clk 0:01:27]} 19. Rxd6 {[%clk 0:01:47.8]} 19...
Nc6 {[%clk 0:01:16.1]} 20. Bh4 {[%clk 0:01:25.4]} 20... Ne3 {[%clk 0:01:05.6]}
21. Rf3 {[%clk 0:01:26]} 21... Nc4 {[%clk 0:01:05.9]} 22. Rd1 {[%clk 0:01:19.7]}
22... Nxb2 {[%clk 0:01:02.5]} 23. Rdf1 {[%clk 0:01:16.2]} 23... Ne5 {[%clk
0:01:02.1]} 24. Rg3 {[%clk 0:01:17.4]} 24... Nbd3 {[%clk 0:01:00]} 25. Na4
{[%clk 0:01:08.4]} 25... Kf8 {[%clk 0:00:51.1]} 26. Nb6 {[%clk 0:01:06.4]} 26...
Rb8 {[%clk 0:00:51.2]} 27. Rd1 {[%clk 0:00:59.2]} 27... Bd7 {[%clk 0:00:33.2]}
28. Nxd7+ {[%clk 0:00:52.7]} 28... Nxd7 {[%clk 0:00:35.1]} 29. Rgxd3 {[%clk
0:00:50.1]} 29... f5 {[%clk 0:00:28.8]} 30. Rxd7 {[%clk 0:00:50.4]} 1-0

[Event "*** Titled Tuesday Blitz"]
[Site "Chess.com"]
[Date "2019.09.03"]
[Round "1"]
[White "GM_dmitrij"]
[Black "Faustregel"]
[Result "1-0"]
[WhiteElo "2961"]
[BlackElo "2502"]
[TimeControl "180+2"]
[EndTime "15:07:07 PDT"]
[Termination "GM_dmitrij won by resignation"]

1. e4 {[%clk 0:03:01.9]} 1... c5 {[%clk 0:03:00.5]} 2. Nf3 {[%clk 0:03:01.1]}
2... d6 {[%clk 0:03:00.9]} 3. Bb5+ {[%clk 0:03:02]} 3... Bd7 {[%clk 0:03:01.6]}
4. Bxd7+ {[%clk 0:03:03]} 4... Qxd7 {[%clk 0:03:02.9]} 5. O-O {[%clk 0:03:04.9]}
5... Nc6 {[%clk 0:03:03.2]} 6. c3 {[%clk 0:03:04.9]} 6... g6 {[%clk 0:02:59.5]}
7. d4 {[%clk 0:03:04.8]} 7... cxd4 {[%clk 0:03:00.1]} 8. cxd4 {[%clk 0:03:06.7]}
8... Bg7 {[%clk 0:03:00.3]} 9. Nc3 {[%clk 0:03:08.3]} 9... Nf6 {[%clk
0:02:52.2]} 10. d5 {[%clk 0:03:02.6]} 10... Ne5 {[%clk 0:02:33]} 11. Nxe5 {[%clk
0:03:00.7]} 11... dxe5 {[%clk 0:02:33.6]} 12. Be3 {[%clk 0:02:57.9]} 12... O-O
{[%clk 0:02:32]} 13. f3 {[%clk 0:02:58.8]} 13... Rfc8 {[%clk 0:02:32.3]} 14. Qb3
{[%clk 0:02:51.3]} 14... Ne8 {[%clk 0:02:27.3]} 15. Rfc1 {[%clk 0:02:38.9]}
15... Nd6 {[%clk 0:02:27]} 16. a4 {[%clk 0:02:39.4]} 16... b6 {[%clk 0:02:07.8]}
17. Nb5 {[%clk 0:02:37.9]} 17... Nxb5 {[%clk 0:01:53.8]} 18. axb5 {[%clk
0:02:28.4]} 18... Rxc1+ {[%clk 0:01:45.1]} 19. Rxc1 {[%clk 0:02:30.3]} 19... Rc8
{[%clk 0:01:45.8]} 20. Rc6 {[%clk 0:02:30.2]} 20... Rb8 {[%clk 0:01:30.2]} 21.
Qc4 {[%clk 0:02:28.9]} 21... f5 {[%clk 0:00:57.5]} 22. Bg5 {[%clk 0:01:59.1]}
22... Bf8 {[%clk 0:00:34.6]} 23. h3 {[%clk 0:01:39.5]} 23... Rb7 {[%clk
0:00:29]} 24. d6+ {[%clk 0:01:28.5]} 24... e6 {[%clk 0:00:28.6]} 25. Rc7 {[%clk
0:01:29.1]} 25... Rxc7 {[%clk 0:00:17.3]} 26. dxc7 {[%clk 0:01:31]} 26... Qc8
{[%clk 0:00:18.5]} 27. Qc6 {[%clk 0:01:31.4]} 27... Kf7 {[%clk 0:00:19.8]} 28.
g4 {[%clk 0:01:20.7]} 28... Bc5+ {[%clk 0:00:19.8]} 29. Kg2 {[%clk 0:01:21.4]}
29... f4 {[%clk 0:00:20.5]} 30. Bd8 {[%clk 0:01:20.6]} 30... Bd4 {[%clk
0:00:21.2]} 31. b4 {[%clk 0:01:21.2]} 31... Be3 {[%clk 0:00:20.9]} 32. Qd6
{[%clk 0:01:12.3]} 32... Bd4 {[%clk 0:00:16.8]} 33. Qe7+ {[%clk 0:01:13]} 33...
Kg8 {[%clk 0:00:17.6]} 34. Qe8+ {[%clk 0:01:11.5]} 34... Kg7 {[%clk 0:00:17.5]}
35. Bf6+ {[%clk 0:01:13.4]} 1-0

[Event "*** Titled Tuesday Blitz"]
[Site "Chess.com"]
[Date "2019.09.03"]
[Round "1"]
[White "filali-marouan"]
[Black "NTBT_DHS"]
[Result "0-1"]
[WhiteElo "2347"]
[BlackElo "2705"]
[TimeControl "180+2"]
[EndTime "15:07:11 PDT"]
[Termination "NTBT_DHS won by resignation"]

1. e4 {[%clk 0:02:59.7]} 1... c5 {[%clk 0:03:00.3]} 2. Nf3 {[%clk 0:02:59.9]}
2... Nc6 {[%clk 0:03:01.1]} 3. d4 {[%clk 0:02:56.6]} 3... cxd4 {[%clk 0:03:03]}
4. Nxd4 {[%clk 0:02:58.5]} 4... Nf6 {[%clk 0:03:03]} 5. Nc3 {[%clk 0:02:49.6]}
5... e5 {[%clk 0:03:02.8]} 6. Nxc6 {[%clk 0:02:49.1]} 6... bxc6 {[%clk
0:03:03.1]} 7. Bd3 {[%clk 0:02:40.1]} 7... d5 {[%clk 0:03:01.5]} 8. O-O {[%clk
0:02:40.3]} 8... Be6 {[%clk 0:02:52.8]} 9. exd5 {[%clk 0:02:37.1]} 9... Nxd5
{[%clk 0:02:51.4]} 10. Re1 {[%clk 0:02:21.5]} 10... Bc5 {[%clk 0:02:39.4]} 11.
Ne4 {[%clk 0:02:01.9]} 11... Be7 {[%clk 0:02:38.8]} 12. Ng3 {[%clk 0:01:53]}
12... Qc7 {[%clk 0:02:22.1]} 13. Qh5 {[%clk 0:01:45.7]} 13... Nf4 {[%clk
0:02:05]} 14. Bxf4 {[%clk 0:01:37.8]} 14... exf4 {[%clk 0:02:06.9]} 15. Nf5
{[%clk 0:01:39]} 15... g6 {[%clk 0:02:01.5]} 16. Ng7+ {[%clk 0:01:30.9]} 16...
Kd7 {[%clk 0:02:02.5]} 17. Nxe6 {[%clk 0:01:26.5]} 17... fxe6 {[%clk 0:01:45.9]}
18. Qg4 {[%clk 0:01:23.5]} 18... Qd6 {[%clk 0:01:31]} 19. Bc4 {[%clk 0:01:20]}
19... Kc7 {[%clk 0:01:30]} 20. Rxe6 {[%clk 0:01:14.6]} 20... Qc5 {[%clk
0:01:30.7]} 21. Qxf4+ {[%clk 0:01:05.9]} 21... Bd6 {[%clk 0:01:30.4]} 22. Qf7+
{[%clk 0:01:05.9]} 22... Kb6 {[%clk 0:01:31.3]} 23. Re3 {[%clk 0:01:02.9]} 23...
Rhf8 {[%clk 0:01:24.6]} 24. Rb3+ {[%clk 0:01:01.9]} 24... Ka5 {[%clk 0:01:25.5]}
25. Qe6 {[%clk 0:00:30.4]} 25... Rae8 {[%clk 0:01:24]} 26. Ra3+ {[%clk
0:00:21.9]} 26... Kb6 {[%clk 0:01:16.3]} 27. Rb3+ {[%clk 0:00:19.9]} 27... Kc7
{[%clk 0:01:14.9]} 28. Qg4 {[%clk 0:00:16.3]} 28... Qxf2+ {[%clk 0:01:15.2]} 29.
Kh1 {[%clk 0:00:16.9]} 29... Re1+ {[%clk 0:01:16.7]} 30. Rxe1 {[%clk 0:00:12.7]}
30... Qxe1+ {[%clk 0:01:18.6]} 0-1